[Event "44th Chess Olympiad Open 2022"]
[Site "Chennai"]
[Date "2022.08.05"]
[Round "7.75"]
[White "Alharthi, Ahmed Mohammed A"]
[Black "Dabuae, Thubalkain"]
[Result "1-0"]
[ECO "A47"]
[WhiteElo "1935"]
[BlackElo "1941"]
[Annotator "TA"]
[PlyCount "85"]
[EventDate "2022.07.29"]
[EventType "team-tourn"]
[EventCountry "IND"]
[SourceTitle "playchess.com"]
[Source "ChessBase"]
[SourceQuality "1"]
[WhiteTeam "KSA"]
[BlackTeam "NRU"]
[TimeControl "40/5400+30:1800+30"]

{[%evp 9,85,2,18,0,34,0,9,-14,54,24,31,34,91,29,32,-5,75,49,56,40,45,41,43,42,40,44,44,46,55,48,50,26,26,25,37,23,35,29,24,30,36,20,83,63,126,108,124,119,110,87,254,253,247,257,603,598,598,581,568,568,773,788,766,684,685,696,694,677,672,622,802,793,762,749,1036,861,1254,1248]} 1. d4 {[%emt 0:00:05]} Nf6 {[%emt 0:00:20]} 2. Bf4 {[%emt 0:00:57]} e6 {[%emt 0:00:30]} 3. e3 {[%emt 0:00:29]} b6 {[%emt 0:01:51]} 4. Nd2 {[%emt 0:03:06]} Bb7 {[%emt 0:00:20]} 5. Ngf3 {[%emt 0:00:37]} g6 {[%emt 0:01:36]} 6. Bd3 {[%emt 0:02:36] A47: 1 d4 Nf6 2 Nf3 b6: Torre, London and Colle Systems.} Bg7 {[%emt 0:00:19] [#]} 7. h4 $146 {[%emt 0:05:39]} ({Predecessor:} 7. e4 O-O 8. c3 d6 9. h3 Nbd7 10. O-O e5 11. Bg5 h6 12. Bh4 Re8 13. Re1 {0-1 (40) Demchenko,A (2641)-Oparin,G (2652) Chess.com INT 2020}) 7... h6 {[%emt 0:00:47]} 8. c3 {[%emt 0:12:08] The position is equal.} d5 {[%emt 0:00:37]} (8... d6 $11) 9. Qc2 {[%emt 0:05:36]} (9. Ne5 {is more complex.} c5 10. Qf3 Nbd7 11. g4) 9... Nbd7 {[%emt 0:01:21]} (9... c5 {keeps more tension.} 10. Bb5+ Nbd7 11. Ne5 a6) 10. g4 {[%emt 0:04:53]} c5 {[%emt 0:06:09] [#]} (10... Qe7 $14) 11. Bd6 {[%emt 0:12:03]} (11. g5 $1 $16 {[%cal Rg5f6]} hxg5 12. Nxg5) 11... Bf8 {[%emt 0:05:53]} 12. Bxf8 {[%emt 0:03:07]} (12. Be5 $5) 12... Nxf8 {[%emt 0:00:33]} (12... Kxf8 $11 {keeps the balance.} 13. Rg1 h5) 13. Ne5 {[%emt 0:02:10]} c4 {[%emt 0:15:51]} 14. Be2 {[%emt 0:00:26]} N8d7 {[%emt 0:02:51]} 15. O-O-O {[%emt 0:12:57]} Nxe5 {[%emt 0:00:10]} 16. dxe5 {[%emt 0:00:11]} Nd7 {[%emt 0:00:28]} 17. f4 {[%emt 0:02:11]} Qc7 {[%emt 0:01:14]} 18. Nf3 {[%emt 0:01:50]} O-O-O {[%emt 0:01:15]} 19. Nd4 {[%emt 0:02:35] aiming for Nb5.} a6 {[%emt 0:01:27] Inhibits Nb5.} 20. b4 {[%emt 0:05:34]} cxb3 $1 {[%emt 0:00:46]} 21. axb3 {[%emt 0:00:08]} Kb8 {[%emt 0:01:56]} 22. Kb2 {[%emt 0:00:54]} Rc8 {[%emt 0:03:30]} 23. Ra1 {[%emt 0:03:34]} b5 {[%emt 0:00:51]} 24. Rhc1 {[%emt 0:02:33]} Qb6 {[%emt 0:00:39]} 25. b4 {[%emt 0:02:27]} g5 {[%emt 0:00:41]} (25... Qd8 $11) 26. h5 $16 {[%emt 0:01:42]} ({Much worse is} 26. hxg5 hxg5 27. Rh1 Rxh1 28. Rxh1 Qc7 $11) 26... f6 {[%emt 0:01:17]} ({Better is} 26... Qd8 $14) 27. exf6 {[%emt 0:03:41]} e5 {[%emt 0:00:23]} 28. fxe5 {[%emt 0:00:36] 0x0.00144ee0b3d6dp-1022s more active pieces.} Nxe5 {[%emt 0:00:34]} 29. Qf5 {[%emt 0:01:05]} Qc7 {[%emt 0:01:01] Loses the game.} (29... Qd6 $16 {might work better.}) 30. Ne6 $18 {[%emt 0:01:14][%cal Bd4e6,Be6c5,Bc5d7][%mdl 32] Chess con chili.} Qd6 {[%emt 0:00:22]} 31. Nc5 {[%emt 0:00:08]} Rhf8 $2 {[%emt 0:01:54] [#]} (31... Rcd8 32. Rf1 Nd7 33. Nxb7 Kxb7) 32. Qxe5 $3 {[%emt 0:00:45][%mdl 512] White is clearly winning.} Qxe5 {[%emt 0:01:02]} 33. Nd7+ {[%emt 0:00:06]} Kc7 {[%emt 0:02:15]} 34. Nxe5 {[%emt 0:00:04]} Rxf6 {[%emt 0:00:13]} 35. Rf1 {[%emt 0:00:26]} Rcf8 {[%emt 0:00:08]} 36. Nd3 {[%emt 0:00:46]} Bc8 {[%emt 0:00:15]} 37. Rxf6 {[%emt 0:03:55]} Rxf6 {[%emt 0:00:02]} 38. Kc2 {[%emt 0:00:24]} Kd6 {[%emt 0:00:27]} 39. Kd2 {[%emt 0:00:15]} Re6 {[%emt 0:01:15]} 40. Rf1 {[%emt 0:00:55]} Ke7 {[%emt 0:00:48]} 41. Rf5 {[%emt 0:31:35]} Kd6 {[%emt 0:30:19]} 42. Rf8 {[%emt 0:00:26]} Bd7 {[%emt 0:00:53]} 43. Nc5 {[%emt 0:00:31] Weighted Error Value: White=0.14 (very precise) /Black=0.35} 1-0

[Event "44th Chess Olympiad Open 2022"]
[Site "Chennai"]
[Date "2022.08.05"]
[Round "7.75"]
[White "Depaune, Ricko"]
[Black "Al Mutairi, Abdullah F"]
[Result "0-1"]
[ECO "D10"]
[WhiteElo "1726"]
[BlackElo "1916"]
[Annotator "TA"]
[PlyCount "56"]
[EventDate "2022.07.29"]
[EventType "team-tourn"]
[EventCountry "IND"]
[SourceTitle "playchess.com"]
[Source "ChessBase"]
[SourceQuality "1"]
[WhiteTeam "NRU"]
[BlackTeam "KSA"]
[TimeControl "40/5400+30:1800+30"]

{[%evp 9,56,-51,45,36,52,42,34,44,35,0,47,-29,-19,-94,-95,-91,-52,-116,-133,-160,-139,-150,-133,-188,-177,-183,-181,-163,-148,-173,-159,-168,-167,-239,-140,-167,-139,-339,-219,-274,-221,-395,-112,-382,-331,-343,-295,-29998,-29999]} 1. d4 {[%emt 0:00:04]} d5 {[%emt 0:00:08]} 2. c4 {[%emt 0:00:15][%cal Bc2c4,Bc4c5][%mdl 32]} c6 {[%emt 0:00:11]} 3. Bf4 {[%emt 0:00:07]} Nf6 {[%emt 0:00:19]} 4. Nc3 {[%emt 0:00:25]} Qb6 {[%emt 0:01:29]} 5. Qc2 {[%emt 0:05:01]} Na6 {[%emt 0:15:20] [#]} (5... Qxd4 $15 6. e3 Qc5) 6. c5 $146 {[%emt 0:01:44] D10: Slav Defence: 3 cxd5 (without early Nf3) and 3 Nc3.} ({Predecessor:} 6. a3 Qxd4 7. e3 Qb6 8. Nf3 Bf5 9. Bd3 Bxd3 10. Qxd3 Nc5 11. Qc2 dxc4 12. O-O {0-1 (26) Belliard Alonzo,J (1627)-Pena Perez,L (2064) Santo Domingo 2016}) 6... Qa5 {[%emt 0:01:06][%cal Oa6c5]} 7. Bd2 {[%emt 0:07:12][%cal Oc3d5]} (7. e3 {with more complications.} Nh5 8. Bg5 e5 9. Qd1) 7... Qc7 {[%emt 0:13:19]} 8. Nf3 {[%emt 0:03:16] White is slightly better.} g6 {[%emt 0:03:13][%cal Oe7e5]} 9. a3 {[%emt 0:00:56]} b6 {[%emt 0:00:18]} (9... e5 $11) 10. e3 {[%emt 0:00:28]} (10. e4 $14) 10... bxc5 $11 {[%emt 0:00:22]} 11. Bxa6 {[%emt 0:00:13]} (11. Rc1 $11) 11... Bxa6 $17 {[%emt 0:00:13]} 12. dxc5 {[%emt 0:07:24]} e5 {[%emt 0:01:09][%cal Be7e5,Be5e4][%mdl 32]} 13. b4 {[%emt 0:00:03]} (13. Qa4 $1 $15 Bb7 14. Rc1) 13... Bg7 {[%emt 0:00:42]} 14. a4 {[%emt 0:01:58]} e4 $36 {[%emt 0:00:51][%mdl 2048] Black is in control.} 15. Nd4 {[%emt 0:01:07]} Bd3 {[%emt 0:00:18]} 16. Qb2 {[%emt 0:00:03]} (16. Qd1 $17) 16... O-O {[%emt 0:00:22]} 17. Nce2 {[%emt 0:01:14]} Nd7 {[%emt 0:00:49][%cal Oa7a5,Bf6d7,Bd7e5,Be5g4,Bg4e3,Be3c4][%mdl 32]} 18. Bc3 {[%emt 0:01:07]} Rab8 {[%emt 0:01:02]} 19. Qa3 {[%emt 0:02:15]} Ne5 {[%emt 0:00:33]} 20. O-O {[%emt 0:00:41]} Ng4 {[%emt 0:00:31][%csl Gg4][%cal Rc7h2] [#]} 21. Ng3 {[%emt 0:02:58]} (21. g3 $142) 21... h5 {[%emt 0:03:21]} (21... Bxf1 $19 22. Rxf1 Rfc8) 22. h3 {[%emt 0:02:24]} Nxe3 {[%emt 0:03:40]} 23. Rfe1 $2 {[%emt 0:01:51]} (23. fxe3 $17 Qxg3 24. Nxc6 Bxf1 25. Kxf1 Bxc3 26. Qxc3) 23... Nc4 {[%emt 0:00:23]} 24. Qb3 {[%emt 0:01:22]} e3 {[%emt 0:01:56] White must now prevent ...exf2+.} 25. Nh1 {[%emt 0:02:14]} (25. Nf3 exf2+ 26. Kxf2) 25... Be5 $2 {[%emt 0:01:36]} (25... Nd2 $19 26. Qd1 Be5) 26. fxe3 $2 {[%emt 0:09:29][%mdl 8192]} (26. Nf3 $17 Bxc3 27. Qxc3) 26... Bh2+ $19 {[%emt 0:03:03] A strong pair of Bishops.} 27. Kf2 {[%emt 0:00:53]} h4 {[%emt 0:03:01]} 28. Nf3 $2 {[%emt 0:00:00] [#]} (28. Qd1 $19 Ne5 29. Ne2) 28... Qg3+ $3 {[%emt 0:01:27][%mdl 512] Weighted Error Value: White=0.83/Black=0.47} 0-1

[Event "44th Chess Olympiad Open 2022"]
[Site "Chennai"]
[Date "2022.08.05"]
[Round "7.75"]
[White "Taleka, Jed Selu"]
[Black "Alzamil, Abdulaziz"]
[Result "0-1"]
[ECO "C27"]
[WhiteElo "1672"]
[BlackElo "1871"]
[Annotator "NA COMBH"]
[PlyCount "116"]
[EventDate "2022.07.29"]
[EventType "team-tourn"]
[EventCountry "IND"]
[SourceTitle "playchess.com"]
[Source "ChessBase"]
[SourceQuality "1"]
[WhiteTeam "NRU"]
[BlackTeam "KSA"]
[TimeControl "40/5400+30:1800+30"]

1. e4 {[%emt 0:00:08]} d6 {[%emt 0:01:15]} 2. Nf3 {[%emt 0:00:18]} Nf6 {[%emt 0:00:52]} 3. Nc3 {[%emt 0:00:44]} e5 {[%emt 0:00:29]} 4. h3 {[%emt 0:00:54]} Be7 {[%emt 0:00:37]} 5. Bc4 {[%emt 0:00:20]} O-O {[%emt 0:01:22]} 6. d3 {[%emt 0:00:08]} c6 {[%emt 0:00:51]} 7. Bg5 {[%emt 0:00:25]} Nbd7 {[%emt 0:01:00]} 8. Bxf6 {[%emt 0:00:30]} Bxf6 {[%emt 0:00:57]} 9. a3 {[%emt 0:01:13]} Nb6 {[%emt 0:04:54]} 10. Ba2 {[%emt 0:00:26]} d5 {[%emt 0:00:53]} 11. exd5 {[%emt 0:00:09]} cxd5 {[%emt 0:00:15]} 12. O-O {[%emt 0:00:28]} Bf5 {[%emt 0:05:19]} 13. Re1 {[%emt 0:03:05]} Re8 {[%emt 0:01:40]} 14. Qd2 {[%emt 0:15:33]} h6 {[%emt 0:18:31]} 15. Re2 {[%emt 0:05:27]} e4 {[%emt 0:22:22]} 16. dxe4 {[%emt 0:00:00]} dxe4 {[%emt 0:00:11]} 17. Qxd8 {[%emt 0:00:00]} Raxd8 {[%emt 0:00:10]} 18. Rae1 {[%emt 0:00:00]} Kf8 {[%emt 0:04:13]} 19. Nd2 {[%emt 0:00:00]} e3 {[%emt 0:06:00]} 20. Nf3 {[%emt 0:00:00]} exf2+ {[%emt 0:02:27]} 21. Kxf2 {[%emt 0:00:00]} Rxe2+ {[%emt 0:00:47]} 22. Rxe2 {[%emt 0:00:00]} Rc8 {[%emt 0:01:26]} 23. g4 {[%emt 0:00:00]} Bg6 {[%emt 0:00:53]} 24. Ne5 {[%emt 0:00:00]} Bxe5 {[%emt 0:04:50]} 25. Rxe5 {[%emt 0:00:00]} Bxc2 {[%emt 0:00:27]} 26. Bd5 {[%emt 0:00:00]} Nxd5 {[%emt 0:03:39]} 27. Rxd5 {[%emt 0:00:00]} a6 {[%emt 0:03:09]} 28. Rd7 {[%emt 0:00:00]} b5 {[%emt 0:01:56]} 29. Rd6 {[%emt 0:00:00]} Ra8 {[%emt 0:00:33]} 30. Ke3 {[%emt 0:00:00]} Bb3 {[%emt 0:00:33]} 31. Kd4 {[%emt 0:00:00]} Ke7 {[%emt 0:01:10]} 32. Rb6 {[%emt 0:00:00]} Rd8+ {[%emt 0:01:22]} 33. Ke5 {[%emt 0:00:00]} f6+ {[%emt 0:00:24]} 34. Ke4 {[%emt 0:00:00]} Bc2+ {[%emt 0:07:01]} 35. Kf4 {[%emt 0:04:57]} Rd3 {[%emt 0:00:00]} 36. g5 {[%emt 0:06:01]} hxg5+ {[%emt 0:00:00]} 37. Kg4 {[%emt 0:00:16]} Rd4+ {[%emt 0:00:00]} 38. Kg3 {[%emt 0:00:19]} Rd6 {[%emt 0:00:00]} 39. Rb7+ {[%emt 0:00:38]} Kf8 {[%emt 0:00:00]} 40. Ra7 {[%emt 0:03:18]} Bf5 {[%emt 0:00:19]} 41. Kf3 {[%emt 0:35:15]} Rd3+ {[%emt 0:30:28]} 42. Ke2 {[%emt 0:00:18]} Rd6 {[%emt 0:01:05]} 43. Ke3 {[%emt 0:02:08]} Re6+ {[%emt 0:06:34]} 44. Kd4 {[%emt 0:01:17]} Bxh3 {[%emt 0:00:18]} 45. Kc5 {[%emt 0:01:19]} g4 {[%emt 0:00:52]} 46. Nd5 {[%emt 0:02:22]} Re5 {[%emt 0:00:00]} 47. Kd6 {[%emt 0:00:00]} Rxd5+ {[%emt 0:13:13]} 48. Kxd5 {[%emt 0:00:00]} g3 {[%emt 0:00:00]} 49. Rc7 {[%emt 0:00:00]} Bf1 {[%emt 0:00:00]} 50. Rc3 {[%emt 0:00:00]} g2 {[%emt 0:00:00]} 51. Rg3 {[%emt 0:00:00]} Kf7 {[%emt 0:00:47]} 52. b4 {[%emt 0:00:00]} g5 {[%emt 0:00:44]} 53. Ke4 {[%emt 0:00:00]} Kg6 {[%emt 0:00:00]} 54. Kf3 {[%emt 0:00:00]} f5 {[%emt 0:00:00]} 55. Kf2 {[%emt 0:00:00]} f4 {[%emt 0:00:00]} 56. Rc3 {[%emt 0:00:00]} g4 {[%emt 0:00:00]} 57. Rc5 {[%emt 0:00:00]} g3+ {[%emt 0:00:00]} 58. Kg1 {[%emt 0:00:00]} f3 {[%emt 0:00:00]} 0-1

[Event "44th Chess Olympiad Open 2022"]
[Site "Chennai"]
[Date "2022.08.05"]
[Round "7.76"]
[White "Mirzaad, S.wahabuddin"]
[Black "Klaas Tokelo"]
[Result "1-0"]
[ECO "D02"]
[WhiteElo "1999"]
[BlackElo "1812"]
[Annotator "TA"]
[PlyCount "71"]
[EventDate "2022.07.29"]
[EventType "team-tourn"]
[EventCountry "IND"]
[SourceTitle "playchess.com"]
[Source "ChessBase"]
[SourceQuality "1"]
[WhiteTeam "Afghanistan"]
[BlackTeam "Lesotho"]
[WhiteTeamCountry "AFG"]
[BlackTeamCountry "LES"]
[TimeControl "40/5400+30:1800+30"]

{[%evp 11,71,-18,7,10,22,11,20,13,30,52,67,49,131,48,217,66,115,76,80,71,100,85,283,285,283,274,325,325,325,321,328,320,328,321,341,343,345,341,340,338,677,651,836,755,880,880,864,854,852,845,878,885,1461,1531,1566,1554,1585,1529,1803,1766,1598,1565]} 1. d4 {[%emt 0:00:11]} Nf6 {[%emt 0:00:54]} 2. Bf4 {[%emt 0:00:11]} e6 {[%emt 0:01:00]} 3. e3 {[%emt 0:00:43]} Be7 {[%emt 0:00:42]} 4. Nf3 {[%emt 0:00:12]} b6 {[%emt 0:00:07]} 5. Nbd2 {[%emt 0:00:34]} Bb7 {[%emt 0:00:10]} 6. Bd3 {[%emt 0:00:53]} d5 {[%emt 0:00:19]} 7. O-O {[%emt 0:00:18] D02: 1 d4 d5 2 Nf3 sidelines, including 2...Nf6 3 g3 and 2...Nf6 3 Bf4.} O-O {[%emt 0:00:04]} 8. Ne5 {[%emt 0:00:38]} Nbd7 {[%emt 0:00:08]} 9. Qf3 {[%emt 0:01:13] The position is equal.} c5 {[%emt 0:01:22]} 10. c3 {[%emt 0:00:10]} Rc8 {[%emt 0:03:36]} 11. Rad1 {[%emt 0:02:46]} Re8 {[%emt 0:08:45] [#]} ({Better is} 11... Ne8 $14) 12. Qh3 {[%emt 0:02:30]} (12. Bxh7+ $1 $16 {[%mdl 512]} Nxh7 13. Nxf7 $1 {[%mdl 512]} Kxf7 14. Bc7+ Nhf6 15. Bxd8 Rexd8 16. Qg3) 12... a6 $2 {[%emt 0:01:17] [#]} (12... c4 $14 13. Bc2 h6) 13. g4 $146 {[%emt 0:03:18]} ({White has to play} 13. Ndf3 $18 {[%cal Oe5f7] Nxf7! is the strong threat.} h6 14. Qg3) ({Predecessor:} 13. Ndf3 Nf8 14. Ng5 b5 15. Ngxf7 Qb6 16. Qg3 Ng6 17. Bxg6 hxg6 18. Qxg6 {1-0 (18) Froes,L (1877)-Albano,R Americana 2009}) 13... Nf8 {[%emt 0:00:33]} (13... cxd4 $14 {feels stronger.} 14. exd4 Nf8) 14. Ndf3 {[%emt 0:06:41] 0x0.001e3d1f2174dp-1022s more active pieces.} Ne4 {[%emt 0:00:56] Against Ng5} 15. Bxe4 {[%emt 0:05:17]} (15. Qh5 {with more complications.} g6 16. Qh6 c4 17. Bb1) 15... dxe4 {[%emt 0:04:30]} 16. dxc5 {[%emt 0:01:25]} exf3 $2 {[%emt 0:07:46]} 17. Rxd8 $18 {[%emt 0:00:41]} Rexd8 {[%emt 0:01:09] [#]} 18. c6 {[%emt 0:00:37]} ({Less strong is} 18. cxb6 f6 $16) ({Not} 18. Nxf3 Rxc5 19. Nd4 Ng6 $16) 18... Bxc6 {[%emt 0:01:42]} 19. Nxc6 {[%emt 0:00:09]} ({Weaker is} 19. Nxf3 Bb7 $14) 19... Rxc6 {[%emt 0:00:33]} 20. Qxf3 {[%emt 0:00:10]} Rdc8 {[%emt 0:00:48]} 21. Rd1 {[%emt 0:00:15]} b5 {[%emt 0:00:34]} 22. h3 {[%emt 0:02:05]} b4 {[%emt 0:01:26]} 23. cxb4 {[%emt 0:00:15]} Bxb4 {[%emt 0:00:08]} 24. Qe4 {[%emt 0:00:10]} Be7 {[%emt 0:01:02]} 25. Be5 {[%emt 0:01:12]} Rc2 $2 {[%emt 0:02:03]} (25... h6 26. Qa4 Ng6) 26. Bc3 {[%emt 0:00:33] White is clearly winning.} R2xc3 {[%emt 0:02:47]} 27. bxc3 {[%emt 0:00:07]} Rxc3 {[%emt 0:00:08]} 28. Qb7 {[%emt 0:00:17]} Bh4 {[%emt 0:00:51]} 29. Qxa6 {[%emt 0:01:37]} Rc2 {[%emt 0:00:10]} 30. Rf1 {[%emt 0:00:19]} h6 {[%emt 0:00:33]} 31. a4 {[%emt 0:00:13][%cal Ba2a4,Ba4a5,Ba5a6][%mdl 32]} Ng6 {[%emt 0:00:16]} 32. a5 {[%emt 0:01:42]} Ra2 {[%emt 0:00:33]} 33. Qa8+ {[%emt 0:00:48]} Kh7 {[%emt 0:00:29]} 34. a6 {[%emt 0:00:13]} Be7 {[%emt 0:00:21]} 35. Qb7 {[%emt 0:02:24]} Bc5 {[%emt 0:01:30]} 36. Rc1 {[%emt 0:00:13] Weighted Error Value: White=0.16 (very precise) /Black=0.66} 1-0

[Event "44th Chess Olympiad Open 2022"]
[Site "Chennai"]
[Date "2022.08.05"]
[Round "7.76"]
[White "Sakhawaty, Sepehr"]
[Black "Bokang, Motsamai"]
[Result "1-0"]
[ECO "B13"]
[WhiteElo "1809"]
[BlackElo "1433"]
[Annotator "NA RC COMBH"]
[PlyCount "47"]
[EventDate "2022.07.29"]
[EventType "team-tourn"]
[EventCountry "IND"]
[SourceTitle "playchess.com"]
[Source "ChessBase"]
[SourceQuality "1"]
[WhiteTeam "Afghanistan"]
[BlackTeam "Lesotho"]
[WhiteTeamCountry "AFG"]
[BlackTeamCountry "LES"]
[TimeControl "40/5400+30:1800+30"]

1. e4 {[%emt 0:00:06]} c6 {[%emt 0:00:28]} 2. d4 {[%emt 0:00:04]} d5 {[%emt 0:00:05]} 3. exd5 {[%emt 0:00:24]} cxd5 {[%emt 0:00:09]} 4. Bf4 {[%emt 0:00:15]} Nf6 {[%emt 0:00:19]} 5. c3 {[%emt 0:00:24]} Nc6 {[%emt 0:00:22]} 6. Bd3 {[%emt 0:00:16]} e6 {[%emt 0:01:06]} 7. Nd2 {[%emt 0:01:19]} Bd6 {[%emt 0:00:57]} 8. Bxd6 {[%emt 0:00:10]} Qxd6 {[%emt 0:00:09]} 9. Ngf3 {[%emt 0:01:04]} a6 {[%emt 0:00:47]} 10. O-O {[%emt 0:00:52]} Bd7 {[%emt 0:01:43]} 11. Qe2 {[%emt 0:03:13]} O-O {[%emt 0:00:56]} 12. Ne5 {[%emt 0:00:25]} Bc8 {[%emt 0:05:09]} 13. f4 {[%emt 0:02:33]} b5 {[%emt 0:01:58]} 14. a3 {[%emt 0:01:01]} Na5 {[%emt 0:01:24]} 15. g4 {[%emt 0:01:41]} g6 {[%emt 0:04:12]} 16. f5 {[%emt 0:31:35]} exf5 {[%emt 0:20:28]} 17. gxf5 {[%emt 0:00:08]} Kg7 {[%emt 0:16:49]} 18. fxg6 {[%emt 0:11:39]} fxg6 {[%emt 0:02:58]} 19. Qg2 {[%emt 0:01:24]} Nd7 {[%emt 0:02:31]} 20. Rxf8 {[%emt 0:01:44]} Nxf8 {[%emt 0:00:35]} 21. Rf1 {[%emt 0:02:19]} Ra7 {[%emt 0:01:36]} 22. Qg5 {[%emt 0:03:10]} Ne6 {[%emt 0:05:29]} 23. Qf6+ {[%emt 0:00:32]} Kg8 {[%emt 0:01:30]} 24. Nf7 {[%emt 0:01:47]} 1-0

[Event "44th Chess Olympiad Open 2022"]
[Site "Chennai"]
[Date "2022.08.05"]
[Round "7.76"]
[White "Khalema, Sechaba"]
[Black "Sulaiman, Ahmad Ashrafi"]
[Result "1-0"]
[ECO "D10"]
[WhiteElo "1790"]
[BlackElo "1953"]
[Annotator "TA"]
[PlyCount "79"]
[EventDate "2022.07.29"]
[EventType "team-tourn"]
[EventCountry "IND"]
[SourceTitle "playchess.com"]
[Source "ChessBase"]
[SourceQuality "1"]
[WhiteTeam "Lesotho"]
[BlackTeam "Afghanistan"]
[WhiteTeamCountry "LES"]
[BlackTeamCountry "AFG"]
[TimeControl "40/5400+30:1800+30"]

{[%evp 12,79,17,19,54,36,63,25,31,26,8,13,3,-6,0,-23,0,-2,25,10,22,10,53,53,52,35,32,23,58,53,60,47,64,56,71,55,67,19,8,0,0,0,0,-9,0,-11,9,8,37,-56,339,304,322,249,443,437,1287,1728,1444,1371,2612,2550,2461,2350,1858,1574,1254,1200,947,897]} 1. d4 {[%emt 0:00:03]} d5 {[%emt 0:00:11]} 2. c4 {[%emt 0:02:14]} c6 {[%emt 0:00:16]} 3. cxd5 {[%emt 0:00:26]} cxd5 {[%emt 0:00:14]} 4. Bf4 {[%emt 0:00:06]} Nc6 {[%emt 0:01:15]} 5. e3 {[%emt 0:00:09]} Nf6 {[%emt 0:01:17]} 6. Nc3 {[%emt 0:00:11]} a6 {[%emt 0:00:16]} 7. Bd3 {[%emt 0:03:24]} b5 {[%emt 0:03:12] D10: Slav Defence: 3 cxd5 (without early Nf3) and 3 Nc3.} 8. Rc1 {[%emt 0:00:00]} Bd7 {[%emt 0:01:41]} 9. Nge2 {[%emt 0:00:00] White is more active.} e6 {[%emt 0:00:29] White has an edge.} 10. O-O {[%emt 0:00:00]} Be7 {[%emt 0:00:17] [#]} 11. h3 $146 {[%emt 0:05:26]} ({Predecessor:} 11. Qd2 O-O 12. Rc2 Nb4 13. Rcc1 Nxd3 14. Qxd3 b4 15. Nb1 Bb5 16. Qd1 Ne4 17. f3 {0-1 (45) Kocsis,P (1371)-Kapas,R (1907) Budapest 2015}) 11... O-O {[%emt 0:00:26]} 12. Bb1 {[%emt 0:00:38]} Rc8 {[%emt 0:00:24]} 13. Bh2 {[%emt 0:00:12]} g6 {[%emt 0:00:43]} 14. Nf4 {[%emt 0:00:09]} Bd6 {[%emt 0:00:34]} 15. Nd3 {[%emt 0:00:04]} Bxh2+ {[%emt 0:00:32]} 16. Kxh2 {[%emt 0:00:03]} Rc7 {[%emt 0:02:31]} (16... Na5 {is interesting.} 17. Nc5 b4 18. N3a4 Nc4) 17. Kg1 {[%emt 0:10:05]} Bc8 {[%emt 0:00:55]} 18. f3 {[%emt 0:00:18]} Qd6 {[%emt 0:01:30]} 19. f4 {[%emt 0:00:13]} Ne4 {[%emt 0:00:42]} 20. Nxe4 {[%emt 0:00:04]} dxe4 {[%emt 0:00:18]} 21. Nc5 {[%emt 0:00:08]} f5 {[%emt 0:00:13]} 22. a3 {[%emt 0:00:33]} Ne7 {[%emt 0:01:11]} 23. Qd2 {[%emt 0:01:40]} Nd5 {[%emt 0:00:23]} 24. Rc2 {[%emt 0:00:34]} (24. Ba2 $14 {is superior.}) 24... g5 $11 {[%emt 0:00:30]} 25. Ba2 {[%emt 0:00:32]} (25. fxg5 {looks sharper.} Qg3 26. Rcc1 Qxe3+ 27. Qxe3 Nxe3 28. Rfe1) 25... gxf4 {[%emt 0:00:42]} 26. Bxd5 {[%emt 0:00:08]} fxe3 {[%emt 0:01:29]} 27. Bxe6+ {[%emt 0:00:11]} Bxe6 {[%emt 0:00:47]} 28. Qxe3 {[%emt 0:00:05][%cal Oc5e6]} Bc8 {[%emt 0:02:14]} 29. Rfc1 {[%emt 0:00:52][%cal Oc5e4] aiming for Nxe4!} Qd5 {[%emt 0:03:18]} 30. Ne6 {[%emt 0:25:12] [#]} Bxe6 $1 {[%emt 0:06:02][%mdl 8192] This costs Black the game.} 31. Rxc7 $18 {[%emt 0:00:10] White wants to mate with Qg5+.} f4 {[%emt 0:00:19]} 32. Qc3 {[%emt 0:00:09]} Qg5 $2 {[%emt 0:02:21]} (32... f3 {might work better.}) 33. Qc6 $1 {[%emt 0:03:51][%csl LRa6,LRe4,LRe6] White is clearly winning.} Bf5 {[%emt 0:05:36]} (33... Qd5 $142 34. Rc5 (34. Qxa6 f3 $18) 34... Qxc6 35. R7xc6 Bc4 36. Rg5+ Kh8) 34. Qd5+ {[%emt 0:00:15]} Kh8 {[%emt 0:00:37] [#]} 35. Rc8 $3 {[%emt 0:00:17][%mdl 512]} Qf6 {[%emt 0:03:44]} (35... Rxc8 36. Rxc8+) 36. R1c6 {[%emt 0:00:13]} Bxc8 {[%emt 0:02:31]} 37. Rxf6 {[%emt 0:00:12]} Rxf6 {[%emt 0:00:07]} 38. Qd8+ {[%emt 0:00:08]} Kg7 {[%emt 0:00:33]} 39. Qxc8 {[%emt 0:00:10]} e3 {[%emt 0:00:10]} 40. Kf1 {[%emt 0:00:16] Weighted Error Value: White=0.19 (very precise) /Black=0.46} 1-0